[Event "December 5 Late 2023"]
[Site "https://www.chess.com"]
[Date "2023.12.05"]
[Round "2"]
[White "Diaz, Fernando"]
[Black "Kanakaris, Georgios"]
[Result "1-0"]
[Board "78"]
[TimeControl "180+1"]
[WhiteFideId "3701255"]
[BlackFideId "4209460"]
[WhiteElo "2350"]
[BlackElo "2693"]
[WhiteTeam "PAR"]
[BlackTeam "GRE"]
[WhiteClock "0:00:13"]
[BlackClock "0:00:14"]

1. e4 {[%clk 0:03:00]}  e6 {[%clk 0:02:59]} 2. d4 {[%clk 0:02:59]}  d5 {[%clk 0:03:00]} 3. Nc3 {[%clk 0:02:59]}  Bb4 {[%clk 0:02:59]} 4. e5 {[%clk 0:02:59]}  b6 {[%clk 0:02:58]} 5. a3 {[%clk 0:03:00]}  Bxc3+ {[%clk 0:02:56]} 6. bxc3 {[%clk 0:03:01]}  Qd7 {[%clk 0:02:57]} 7. c4 {[%clk 0:02:46]}  dxc4 {[%clk 0:02:53]} 8. Bxc4 {[%clk 0:02:45]}  Bb7 {[%clk 0:02:50]} 9. Nf3 {[%clk 0:02:45]}  Ne7 {[%clk 0:02:41]} 10. c3 {[%clk 0:02:45]}  c5 {[%clk 0:02:29]} 11. O-O {[%clk 0:02:41]}  cxd4 {[%clk 0:02:28]} 12. cxd4 {[%clk 0:02:42]}  O-O {[%clk 0:02:24]} 13. Bd3 {[%clk 0:02:33]}  h6 {[%clk 0:02:24]} 14. a4 {[%clk 0:02:25]}  Nbc6 {[%clk 0:02:19]} 15. Be3 {[%clk 0:02:24]}  Nb4 {[%clk 0:02:15]} 16. Bb1 {[%clk 0:02:23]}  Ned5 {[%clk 0:02:10]} 17. Qd2 {[%clk 0:02:03]}  Nxe3 {[%clk 0:02:09]} 18. fxe3 {[%clk 0:01:59]}  a5 {[%clk 0:02:08]} 19. Ne1 {[%clk 0:01:36]}  Ba6 {[%clk 0:01:42]} 20. Rf3 {[%clk 0:01:30]}  Rac8 {[%clk 0:01:37]} 21. Rg3 {[%clk 0:01:12]}  f5 {[%clk 0:01:29]} 22. exf6 {[%clk 0:01:09]}  Rxf6 {[%clk 0:01:28]} 23. Nf3 {[%clk 0:01:09]}  Qc6 {[%clk 0:01:18]} 24. h4 {[%clk 0:00:53]}  Qc1+ {[%clk 0:01:11]} 25. Kh2 {[%clk 0:00:53]}  Qxd2 {[%clk 0:01:09]} 26. Nxd2 {[%clk 0:00:52]}  Kf8 {[%clk 0:00:45]} 27. Be4 {[%clk 0:00:37]}  Nd5 {[%clk 0:00:27]} 28. Rb1 {[%clk 0:00:37]}  Rc3 {[%clk 0:00:22]} 29. Nf3 {[%clk 0:00:28]}  Rxe3 {[%clk 0:00:20]} 30. Bxd5 {[%clk 0:00:26]}  exd5 {[%clk 0:00:21]} 31. Ne5 {[%clk 0:00:25]}  Rxg3 {[%clk 0:00:21]} 32. Kxg3 {[%clk 0:00:26]}  Ke7 {[%clk 0:00:20]} 33. Rc1 {[%clk 0:00:23]}  Kd8 {[%clk 0:00:20]} 34. Nc6+ {[%clk 0:00:20]}  Ke8 {[%clk 0:00:20]} 35. Ne5 {[%clk 0:00:20]}  Kd8 {[%clk 0:00:17]} 36. Nc6+ {[%clk 0:00:20]}  Ke8 {[%clk 0:00:16]} 37. Ne5 {[%clk 0:00:20]}  g5 {[%clk 0:00:17]} 38. hxg5 {[%clk 0:00:17]}  hxg5 {[%clk 0:00:17]} 39. Kg4 {[%clk 0:00:15]}  b5 {[%clk 0:00:17]} 40. axb5 {[%clk 0:00:15]}  Bxb5 {[%clk 0:00:18]} 41. Kxg5 {[%clk 0:00:16]}  Rf2 {[%clk 0:00:18]} 42. g4 {[%clk 0:00:16]}  a4 {[%clk 0:00:17]} 43. Rc5 {[%clk 0:00:17]}  Bd7 {[%clk 0:00:16]} 44. Ra5 {[%clk 0:00:16]}  Ra2 {[%clk 0:00:15]} 45. Rxd5 {[%clk 0:00:15]}  Be6 {[%clk 0:00:15]} 46. Ra5 {[%clk 0:00:15]}  a3 {[%clk 0:00:16]} 47. Kf6 {[%clk 0:00:14]}  Bxg4 {[%clk 0:00:16]} 48. Ra8+ {[%clk 0:00:14]}  Bc8 {[%clk 0:00:14]} 49. Rxc8# {[%clk 0:00:13]} 1-0

[Event "December 5 Late 2023"]
[Site "https://www.chess.com"]
[Date "2023.12.05"]
[Round "2"]
[White "Adamczyk, Zuzanna"]
[Black "Amburgy, Ryan"]
[Result "1-0"]
[Board "79"]
[TimeControl "180+1"]
[WhiteFideId "1187570"]
[BlackFideId "30924820"]
[WhiteElo "2335"]
[BlackElo "2683"]
[WhiteTeam "POL"]
[BlackTeam "USA"]
[WhiteClock "0:00:36"]
[BlackClock "0:00:08"]

1. d4 {[%clk 0:03:00]}  Nf6 {[%clk 0:02:59]} 2. Nf3 {[%clk 0:03:01]}  d5 {[%clk 0:02:59]} 3. g3 {[%clk 0:03:00]}  g6 {[%clk 0:02:57]} 4. Bg2 {[%clk 0:03:01]}  Bg7 {[%clk 0:02:58]} 5. O-O {[%clk 0:03:01]}  O-O {[%clk 0:02:59]} 6. c4 {[%clk 0:03:00]}  c6 {[%clk 0:02:59]} 7. Nc3 {[%clk 0:03:00]}  dxc4 {[%clk 0:02:59]} 8. a4 {[%clk 0:02:56]}  Nd5 {[%clk 0:02:58]} 9. e4 {[%clk 0:02:53]}  Nb4 {[%clk 0:02:57]} 10. h3 {[%clk 0:02:40]}  N8a6 {[%clk 0:02:44]} 11. Be3 {[%clk 0:02:35]}  Nd3 {[%clk 0:02:35]} 12. b3 {[%clk 0:02:33]}  e5 {[%clk 0:02:24]} 13. d5 {[%clk 0:02:29]}  cxd5 {[%clk 0:02:17]} 14. Nxd5 {[%clk 0:02:30]}  Ndc5 {[%clk 0:02:08]} 15. bxc4 {[%clk 0:02:21]}  Nxe4 {[%clk 0:02:07]} 16. Nxe5 {[%clk 0:02:22]}  Bxe5 {[%clk 0:02:06]} 17. Bxe4 {[%clk 0:02:22]}  Bxh3 {[%clk 0:02:04]} 18. Bd4 {[%clk 0:02:11]}  Qd6 {[%clk 0:01:46]} 19. Re1 {[%clk 0:01:56]}  Bxd4 {[%clk 0:01:36]} 20. Qxd4 {[%clk 0:01:57]}  Rfd8 {[%clk 0:01:36]} 21. Qb2 {[%clk 0:01:46]}  Nc5 {[%clk 0:01:24]} 22. Nf6+ {[%clk 0:01:43]}  Kh8 {[%clk 0:01:24]} 23. Rad1 {[%clk 0:01:26]}  Qb6 {[%clk 0:01:02]} 24. Qa1 {[%clk 0:00:44]}  Nb3 {[%clk 0:00:46]} 25. Qc3 {[%clk 0:00:44]}  Nd4 {[%clk 0:00:45]} 26. Nd5 {[%clk 0:00:41]}  Qc5 {[%clk 0:00:41]} 27. Rxd4 {[%clk 0:00:41]}  Kg8 {[%clk 0:00:38]} 28. Nf6+ {[%clk 0:00:40]}  Kf8 {[%clk 0:00:37]} 29. Rxd8+ {[%clk 0:00:38]}  Rxd8 {[%clk 0:00:36]} 30. Nxh7+ {[%clk 0:00:39]}  Kg8 {[%clk 0:00:37]} 31. Nf6+ {[%clk 0:00:39]}  Kf8 {[%clk 0:00:38]} 32. Bd5 {[%clk 0:00:36]}  Bf5 {[%clk 0:00:08]} 33. Nd7+ {[%clk 0:00:36]} 1-0

[Event "December 5 Late 2023"]
[Site "https://www.chess.com"]
[Date "2023.12.05"]
[Round "2"]
[White "Chlpik, Martin"]
[Black "Atanasov, Anthony"]
[Result "0-1"]
[Board "82"]
[TimeControl "180+1"]
[WhiteFideId "14923351"]
[BlackFideId "2623897"]
[WhiteElo "2257"]
[BlackElo "2662"]
[WhiteTeam "SVK"]
[BlackTeam "CAN"]
[WhiteClock "0:00:39"]
[BlackClock "0:00:03"]

1. d4 {[%clk 0:03:00]}  Nf6 {[%clk 0:02:56]} 2. c4 {[%clk 0:03:01]}  g6 {[%clk 0:02:42]} 3. f3 {[%clk 0:03:01]}  c5 {[%clk 0:02:39]} 4. d5 {[%clk 0:03:01]}  e6 {[%clk 0:02:38]} 5. e4 {[%clk 0:02:59]}  d6 {[%clk 0:02:26]} 6. Nc3 {[%clk 0:02:59]}  Bg7 {[%clk 0:02:26]} 7. Be3 {[%clk 0:02:58]}  exd5 {[%clk 0:02:24]} 8. cxd5 {[%clk 0:02:58]}  O-O {[%clk 0:02:25]} 9. Qd2 {[%clk 0:02:58]}  Re8 {[%clk 0:02:18]} 10. h4 {[%clk 0:02:58]}  a6 {[%clk 0:02:06]} 11. a4 {[%clk 0:02:57]}  h5 {[%clk 0:02:01]} 12. Nh3 {[%clk 0:02:56]}  Nbd7 {[%clk 0:02:00]} 13. Nf2 {[%clk 0:02:56]}  Ne5 {[%clk 0:01:59]} 14. a5 {[%clk 0:02:43]}  Rb8 {[%clk 0:01:57]} 15. b3 {[%clk 0:02:32]}  b6 {[%clk 0:01:54]} 16. axb6 {[%clk 0:02:30]}  Qxb6 {[%clk 0:01:53]} 17. Bc4 {[%clk 0:02:29]}  Nxc4 {[%clk 0:01:54]} 18. bxc4 {[%clk 0:02:29]}  Qb4 {[%clk 0:01:19]} 19. Rb1 {[%clk 0:02:22]}  Nxe4 {[%clk 0:01:14]} 20. Rxb4 {[%clk 0:02:17]}  Nxd2 {[%clk 0:01:09]} 21. Rxb8 {[%clk 0:02:17]}  Bxc3 {[%clk 0:00:57]} 22. Nd1 {[%clk 0:02:09]}  Ba5 {[%clk 0:00:37]} 23. Kf2 {[%clk 0:01:59]}  Nxc4 {[%clk 0:00:38]} 24. Bf4 {[%clk 0:01:53]}  Bc7 {[%clk 0:00:32]} 25. Rb1 {[%clk 0:01:38]}  Na3 {[%clk 0:00:15]} 26. Rc1 {[%clk 0:01:35]}  Nb5 {[%clk 0:00:15]} 27. Re1 {[%clk 0:01:26]}  Rd8 {[%clk 0:00:09]} 28. Re7 {[%clk 0:01:21]}  Bb7 {[%clk 0:00:06]} 29. Nc3 {[%clk 0:01:20]}  Rc8 {[%clk 0:00:02]} 30. Ne4 {[%clk 0:01:12]}  Kf8 {[%clk 0:00:02]} 31. Bg5 {[%clk 0:01:10]}  Bxd5 {[%clk 0:00:02]} 32. Re1 {[%clk 0:00:59]}  Bb6 {[%clk 0:00:02]} 33. Nf6 {[%clk 0:00:55]}  Be6 {[%clk 0:00:01]} 34. Nd7+ {[%clk 0:00:52]}  Bxd7 {[%clk 0:00:01]} 35. Rxd7 {[%clk 0:00:53]}  c4+ {[%clk 0:00:02]} 36. Kg3 {[%clk 0:00:50]}  Rc7 {[%clk 0:00:01]} 37. Bh6+ {[%clk 0:00:47]}  Kg8 {[%clk 0:00:01]} 38. Rd8+ {[%clk 0:00:46]}  Kh7 {[%clk 0:00:01]} 39. Bg5 {[%clk 0:00:45]}  Rb7 {[%clk 0:00:01]} 40. Bf6 {[%clk 0:00:45]}  Bxd8 {[%clk 0:00:01]} 41. Bxd8 {[%clk 0:00:43]}  Kg7 {[%clk 0:00:02]} 42. Re8 {[%clk 0:00:42]}  Rd7 {[%clk 0:00:02]} 43. Bg5 {[%clk 0:00:42]}  d5 {[%clk 0:00:02]} 44. Bf4 {[%clk 0:00:42]}  f6 {[%clk 0:00:02]} 45. Ra8 {[%clk 0:00:41]}  d4 {[%clk 0:00:02]} 46. Rxa6 {[%clk 0:00:39]}  d3 {[%clk 0:00:03]} 0-1

[Event "December 5 Late 2023"]
[Site "https://www.chess.com"]
[Date "2023.12.05"]
[Round "2"]
[White "Luxama, Jacques Muller"]
[Black "Thomforde-Toates, Noah"]
[Result "0-1"]
[Board "83"]
[TimeControl "180+1"]
[WhiteFideId "11900113"]
[BlackFideId "30951992"]
[WhiteElo "2215"]
[BlackElo "2660"]
[WhiteTeam "HAI"]
[BlackTeam "USA"]
[WhiteClock "0:00:48"]
[BlackClock "0:00:33"]

1. e4 {[%clk 0:03:00]}  c6 {[%clk 0:02:59]} 2. d4 {[%clk 0:02:58]}  g6 {[%clk 0:02:57]} 3. h4 {[%clk 0:02:55]}  h5 {[%clk 0:02:52]} 4. Nf3 {[%clk 0:02:54]}  Bg7 {[%clk 0:02:52]} 5. Ng5 {[%clk 0:02:55]}  d6 {[%clk 0:02:47]} 6. Bc4 {[%clk 0:02:54]}  d5 {[%clk 0:02:47]} 7. Bb3 {[%clk 0:02:53]}  Nh6 {[%clk 0:02:36]} 8. exd5 {[%clk 0:02:46]}  cxd5 {[%clk 0:02:35]} 9. Nc3 {[%clk 0:02:47]}  e6 {[%clk 0:02:33]} 10. Bf4 {[%clk 0:02:42]}  Nc6 {[%clk 0:02:30]} 11. Ne2 {[%clk 0:02:42]}  Nf5 {[%clk 0:02:20]} 12. c3 {[%clk 0:02:41]}  Bf6 {[%clk 0:02:20]} 13. g3 {[%clk 0:02:28]}  a6 {[%clk 0:02:14]} 14. Qd3 {[%clk 0:02:26]}  Bd7 {[%clk 0:02:11]} 15. O-O-O {[%clk 0:02:16]}  Rc8 {[%clk 0:02:08]} 16. Kb1 {[%clk 0:02:16]}  Na5 {[%clk 0:02:04]} 17. Rde1 {[%clk 0:02:08]}  Qb6 {[%clk 0:02:02]} 18. Nc1 {[%clk 0:02:01]}  Kf8 {[%clk 0:01:55]} 19. f3 {[%clk 0:01:58]}  Bb5 {[%clk 0:01:50]} 20. Qd1 {[%clk 0:01:58]}  Bc4 {[%clk 0:01:49]} 21. g4 {[%clk 0:01:56]}  Ng7 {[%clk 0:01:40]} 22. Be5 {[%clk 0:01:44]}  Bxe5 {[%clk 0:01:36]} 23. dxe5 {[%clk 0:01:39]}  Bxb3 {[%clk 0:01:34]} 24. axb3 {[%clk 0:01:39]}  Nc6 {[%clk 0:01:31]} 25. Qd2 {[%clk 0:01:33]}  Rc7 {[%clk 0:01:17]} 26. Qf4 {[%clk 0:01:31]}  d4 {[%clk 0:01:13]} 27. c4 {[%clk 0:01:25]}  Na5 {[%clk 0:01:10]} 28. Kc2 {[%clk 0:01:23]}  Nxb3 {[%clk 0:01:03]} 29. Nxb3 {[%clk 0:01:14]}  d3+ {[%clk 0:00:53]} 30. Kc3 {[%clk 0:01:10]}  a5 {[%clk 0:00:52]} 31. Nd2 {[%clk 0:01:07]}  Rd7 {[%clk 0:00:48]} 32. c5 {[%clk 0:01:02]}  Qxc5+ {[%clk 0:00:45]} 33. Qc4 {[%clk 0:01:03]}  Qb6 {[%clk 0:00:42]} 34. Qb3 {[%clk 0:00:48]}  Qd4# {[%clk 0:00:33]} 0-1

[Event "December 5 Late 2023"]
[Site "https://www.chess.com"]
[Date "2023.12.05"]
[Round "2"]
[White "Krallis, Christos"]
[Black "Jing, Andrew"]
[Result "1-0"]
[Board "84"]
[TimeControl "180+1"]
[WhiteFideId "4298896"]
[BlackFideId "30984076"]
[WhiteElo "2659"]
[BlackElo "2207"]
[WhiteTeam "GRE"]
[BlackTeam "USA"]
[WhiteClock "0:00:22"]
[BlackClock "0:00:17"]

1. d4 {[%clk 0:03:00]}  Nf6 {[%clk 0:02:59]} 2. c4 {[%clk 0:02:58]}  g6 {[%clk 0:02:59]} 3. Nc3 {[%clk 0:02:57]}  Bg7 {[%clk 0:02:58]} 4. Bg5 {[%clk 0:02:51]}  O-O {[%clk 0:02:57]} 5. Nf3 {[%clk 0:02:51]}  d6 {[%clk 0:02:57]} 6. e4 {[%clk 0:02:47]}  c5 {[%clk 0:02:49]} 7. d5 {[%clk 0:02:45]}  h6 {[%clk 0:02:48]} 8. Bh4 {[%clk 0:02:42]}  g5 {[%clk 0:02:48]} 9. Bg3 {[%clk 0:02:42]}  Nh5 {[%clk 0:02:48]} 10. Be2 {[%clk 0:02:36]}  f5 {[%clk 0:02:45]} 11. exf5 {[%clk 0:02:35]}  Bxf5 {[%clk 0:02:45]} 12. O-O {[%clk 0:02:34]}  Nxg3 {[%clk 0:02:42]} 13. hxg3 {[%clk 0:02:35]}  Nd7 {[%clk 0:02:41]} 14. Bd3 {[%clk 0:02:34]}  Bg4 {[%clk 0:02:33]} 15. Be2 {[%clk 0:02:33]}  Nf6 {[%clk 0:02:31]} 16. Nd2 {[%clk 0:02:32]}  Bf5 {[%clk 0:02:30]} 17. Re1 {[%clk 0:02:24]}  Qd7 {[%clk 0:02:29]} 18. Nf1 {[%clk 0:02:17]}  Bg6 {[%clk 0:02:28]} 19. Bd3 {[%clk 0:02:11]}  Bh5 {[%clk 0:02:14]} 20. Be2 {[%clk 0:02:09]}  Bxe2 {[%clk 0:02:12]} 21. Qxe2 {[%clk 0:02:06]}  Ng4 {[%clk 0:02:12]} 22. f3 {[%clk 0:02:03]}  Bd4+ {[%clk 0:02:11]} 23. Kh1 {[%clk 0:01:58]}  Nf2+ {[%clk 0:02:11]} 24. Kh2 {[%clk 0:01:58]}  g4 {[%clk 0:02:11]} 25. Ne3 {[%clk 0:01:31]}  gxf3 {[%clk 0:00:56]} 26. Qxf2 {[%clk 0:01:29]}  fxg2 {[%clk 0:00:55]} 27. Qxg2 {[%clk 0:01:28]}  Rf7 {[%clk 0:00:46]} 28. Qh3 {[%clk 0:00:36]}  Rf2+ {[%clk 0:00:42]} 29. Ng2 {[%clk 0:00:34]}  Qxh3+ {[%clk 0:00:41]} 30. Kxh3 {[%clk 0:00:35]}  Rxb2 {[%clk 0:00:41]} 31. Nb5 {[%clk 0:00:33]}  Bf6 {[%clk 0:00:40]} 32. Rad1 {[%clk 0:00:31]}  Rxa2 {[%clk 0:00:39]} 33. Nc7 {[%clk 0:00:31]}  Rc8 {[%clk 0:00:39]} 34. Ne6 {[%clk 0:00:31]}  Rc2 {[%clk 0:00:37]} 35. Ne3 {[%clk 0:00:31]}  Rc3 {[%clk 0:00:36]} 36. Rc1 {[%clk 0:00:30]}  Rd3 {[%clk 0:00:33]} 37. Nf4 {[%clk 0:00:29]}  Rb3 {[%clk 0:00:30]} 38. Nf5 {[%clk 0:00:29]}  Kf8 {[%clk 0:00:28]} 39. Nxe7 {[%clk 0:00:28]}  Bxe7 {[%clk 0:00:26]} 40. Ng6+ {[%clk 0:00:28]}  Kf7 {[%clk 0:00:26]} 41. Nxe7 {[%clk 0:00:28]}  Re8 {[%clk 0:00:26]} 42. Nf5 {[%clk 0:00:28]}  Rd8 {[%clk 0:00:25]} 43. Re6 {[%clk 0:00:26]}  b5 {[%clk 0:00:22]} 44. Nxd6+ {[%clk 0:00:25]}  Kg7 {[%clk 0:00:22]} 45. Nf5+ {[%clk 0:00:25]}  Kf7 {[%clk 0:00:22]} 46. Nxh6+ {[%clk 0:00:25]}  Kf8 {[%clk 0:00:21]} 47. Rf1+ {[%clk 0:00:25]}  Kg7 {[%clk 0:00:21]} 48. Rf7+ {[%clk 0:00:25]}  Kh8 {[%clk 0:00:17]} 49. Ree7 {[%clk 0:00:22]} 1-0

[Event "December 5 Late 2023"]
[Site "https://www.chess.com"]
[Date "2023.12.05"]
[Round "2"]
[White "Negron Lizarazo, Juan Sebastian"]
[Black "Pakleza, Zbigniew"]
[Result "0-1"]
[Board "86"]
[TimeControl "180+1"]
[WhiteFideId "3936910"]
[BlackFideId "1119290"]
[WhiteElo "2104"]
[BlackElo "2655"]
[WhiteTeam "COL"]
[BlackTeam "POL"]
[WhiteClock "0:00:06"]
[BlackClock "0:00:02"]

1. e4 {[%clk 0:03:00]}  d6 {[%clk 0:03:00]} 2. d4 {[%clk 0:02:59]}  Nf6 {[%clk 0:03:00]} 3. Bd3 {[%clk 0:02:56]}  e5 {[%clk 0:03:00]} 4. Nf3 {[%clk 0:02:54]}  Nbd7 {[%clk 0:02:57]} 5. dxe5 {[%clk 0:02:52]}  dxe5 {[%clk 0:02:57]} 6. Nc3 {[%clk 0:02:47]}  c6 {[%clk 0:02:56]} 7. O-O {[%clk 0:02:46]}  Be7 {[%clk 0:02:55]} 8. Qe2 {[%clk 0:02:37]}  O-O {[%clk 0:02:55]} 9. Rd1 {[%clk 0:02:36]}  Qc7 {[%clk 0:02:55]} 10. Bg5 {[%clk 0:02:34]}  Re8 {[%clk 0:02:54]} 11. Bh4 {[%clk 0:02:28]}  a5 {[%clk 0:02:42]} 12. a4 {[%clk 0:02:12]}  Nf8 {[%clk 0:02:30]} 13. Bg3 {[%clk 0:02:10]}  Ng6 {[%clk 0:02:28]} 14. Bc4 {[%clk 0:01:49]}  Bb4 {[%clk 0:02:24]} 15. Ng5 {[%clk 0:01:42]}  Rf8 {[%clk 0:02:10]} 16. Na2 {[%clk 0:01:37]}  Bc5 {[%clk 0:02:05]} 17. c3 {[%clk 0:01:34]}  h6 {[%clk 0:02:00]} 18. Nf3 {[%clk 0:01:34]}  Re8 {[%clk 0:01:55]} 19. b4 {[%clk 0:01:32]}  Bf8 {[%clk 0:01:50]} 20. b5 {[%clk 0:01:27]}  Nh5 {[%clk 0:01:39]} 21. bxc6 {[%clk 0:01:24]}  bxc6 {[%clk 0:01:39]} 22. Nc1 {[%clk 0:01:09]}  Nhf4 {[%clk 0:01:37]} 23. Qe3 {[%clk 0:01:04]}  Be6 {[%clk 0:01:25]} 24. Bxe6 {[%clk 0:01:00]}  Nxe6 {[%clk 0:01:26]} 25. Nd3 {[%clk 0:00:52]}  f6 {[%clk 0:01:24]} 26. Rab1 {[%clk 0:00:48]}  Rab8 {[%clk 0:01:21]} 27. Nd2 {[%clk 0:00:42]}  c5 {[%clk 0:00:51]} 28. Nc4 {[%clk 0:00:39]}  Qc6 {[%clk 0:00:51]} 29. Nxa5 {[%clk 0:00:30]}  Qxa4 {[%clk 0:00:50]} 30. Ra1 {[%clk 0:00:27]}  Qb5 {[%clk 0:00:45]} 31. c4 {[%clk 0:00:20]}  Qb6 {[%clk 0:00:42]} 32. Rdb1 {[%clk 0:00:18]}  Qxb1+ {[%clk 0:00:41]} 33. Rxb1 {[%clk 0:00:19]}  Rxb1+ {[%clk 0:00:42]} 34. Ne1 {[%clk 0:00:19]}  Nd4 {[%clk 0:00:38]} 35. f3 {[%clk 0:00:19]}  Ra8 {[%clk 0:00:33]} 36. Nb7 {[%clk 0:00:18]}  Rxb7 {[%clk 0:00:33]} 37. h4 {[%clk 0:00:17]}  h5 {[%clk 0:00:32]} 38. Kh2 {[%clk 0:00:17]}  Ra2 {[%clk 0:00:30]} 39. f4 {[%clk 0:00:17]}  exf4 {[%clk 0:00:29]} 40. Bxf4 {[%clk 0:00:17]}  Nxf4 {[%clk 0:00:29]} 41. Qxf4 {[%clk 0:00:17]}  Rb1 {[%clk 0:00:26]} 42. Nf3 {[%clk 0:00:16]}  Nxf3+ {[%clk 0:00:21]} 43. Qxf3 {[%clk 0:00:17]}  Rbb2 {[%clk 0:00:22]} 44. Qxh5 {[%clk 0:00:16]}  Rxg2+ {[%clk 0:00:21]} 45. Kh3 {[%clk 0:00:17]}  Rad2 {[%clk 0:00:18]} 46. Qf5 {[%clk 0:00:16]}  Rgf2 {[%clk 0:00:10]} 47. Qe6+ {[%clk 0:00:16]}  Kh7 {[%clk 0:00:10]} 48. Qf7 {[%clk 0:00:15]}  Rd3+ {[%clk 0:00:07]} 49. Kg4 {[%clk 0:00:15]}  Rg2+ {[%clk 0:00:07]} 50. Kh5 {[%clk 0:00:15]}  Rdg3 {[%clk 0:00:03]} 51. e5 {[%clk 0:00:14]}  Rg6 {[%clk 0:00:02]} 52. exf6 {[%clk 0:00:06]}  Rh6# {[%clk 0:00:02]} 0-1

[Event "December 5 Late 2023"]
[Site "https://www.chess.com"]
[Date "2023.12.05"]
[Round "2"]
[White "Tokhirjonova, Gulrukhbegim"]
[Black "De Souza, Arthur Olintho"]
[Result "1-0"]
[Board "87"]
[TimeControl "180+1"]
[WhiteFideId "14203626"]
[BlackFideId "2116200"]
[WhiteElo "2654"]
[BlackElo "2041"]
[WhiteTeam "USA"]
[BlackTeam "BRA"]
[WhiteClock "0:00:42"]
[BlackClock "0:00:17"]

1. Nf3 {[%clk 0:03:00]}  d5 {[%clk 0:02:18]} 2. e3 {[%clk 0:02:55]}  Nf6 {[%clk 0:02:18]} 3. b3 {[%clk 0:02:54]}  g6 {[%clk 0:02:18]} 4. Bb2 {[%clk 0:02:55]}  Bg7 {[%clk 0:02:17]} 5. Be2 {[%clk 0:02:55]}  O-O {[%clk 0:02:17]} 6. O-O {[%clk 0:02:52]}  c5 {[%clk 0:02:18]} 7. c4 {[%clk 0:02:51]}  dxc4 {[%clk 0:02:17]} 8. bxc4 {[%clk 0:02:51]}  Qb6 {[%clk 0:02:16]} 9. Bc3 {[%clk 0:02:51]}  Nc6 {[%clk 0:02:16]} 10. Na3 {[%clk 0:02:50]}  Bf5 {[%clk 0:02:16]} 11. d3 {[%clk 0:02:49]}  Rfd8 {[%clk 0:02:16]} 12. Qc2 {[%clk 0:02:48]}  Rd7 {[%clk 0:02:14]} 13. Rab1 {[%clk 0:02:47]}  Qd8 {[%clk 0:02:14]} 14. e4 {[%clk 0:02:46]}  Bg4 {[%clk 0:02:13]} 15. Rfd1 {[%clk 0:02:42]}  a6 {[%clk 0:02:13]} 16. Qb2 {[%clk 0:02:39]}  Bxf3 {[%clk 0:01:57]} 17. Bxf3 {[%clk 0:02:38]}  Nd4 {[%clk 0:01:57]} 18. Bxd4 {[%clk 0:02:33]}  Rxd4 {[%clk 0:01:58]} 19. Qxb7 {[%clk 0:02:27]}  Rc8 {[%clk 0:01:13]} 20. Nc2 {[%clk 0:02:21]}  Rd7 {[%clk 0:01:12]} 21. Qxa6 {[%clk 0:02:19]}  Ra8 {[%clk 0:01:12]} 22. Qb5 {[%clk 0:02:11]}  Rxa2 {[%clk 0:01:11]} 23. Ne3 {[%clk 0:02:00]}  Rxd3 {[%clk 0:01:01]} 24. e5 {[%clk 0:01:55]}  Nh5 {[%clk 0:00:46]} 25. Qxc5 {[%clk 0:01:08]}  Nf4 {[%clk 0:00:35]} 26. Nd5 {[%clk 0:00:46]}  Nxd5 {[%clk 0:00:17]} 27. Rxd3 {[%clk 0:00:42]} 1-0

[Event "December 5 Late 2023"]
[Site "https://www.chess.com"]
[Date "2023.12.05"]
[Round "2"]
[White "Burke, Paul"]
[Black "Goltsev, Dmitry"]
[Result "0-1"]
[Board "89"]
[TimeControl "180+1"]
[WhiteFideId "2605767"]
[BlackFideId "24176710"]
[WhiteElo "1811"]
[BlackElo "2649"]
[WhiteTeam "CAN"]
[BlackTeam "RUS"]
[WhiteClock "0:00:09"]
[BlackClock "0:00:15"]

1. e4 {[%clk 0:02:53]}  e6 {[%clk 0:02:59]} 2. d4 {[%clk 0:02:52]}  d5 {[%clk 0:02:59]} 3. e5 {[%clk 0:02:52]}  c5 {[%clk 0:02:58]} 4. Qg4 {[%clk 0:02:51]}  cxd4 {[%clk 0:02:58]} 5. Nf3 {[%clk 0:02:51]}  Nc6 {[%clk 0:02:56]} 6. Bd3 {[%clk 0:02:51]}  Nge7 {[%clk 0:02:46]} 7. O-O {[%clk 0:02:50]}  Ng6 {[%clk 0:02:46]} 8. Qg3 {[%clk 0:02:50]}  Be7 {[%clk 0:02:44]} 9. c3 {[%clk 0:02:49]}  dxc3 {[%clk 0:02:42]} 10. Nxc3 {[%clk 0:02:48]}  a6 {[%clk 0:02:42]} 11. a3 {[%clk 0:02:45]}  b5 {[%clk 0:02:34]} 12. b4 {[%clk 0:02:42]}  Bb7 {[%clk 0:02:34]} 13. Bd2 {[%clk 0:02:40]}  Qb6 {[%clk 0:02:11]} 14. h4 {[%clk 0:02:36]}  Rg8 {[%clk 0:01:58]} 15. h5 {[%clk 0:02:34]}  Nf8 {[%clk 0:01:57]} 16. Rac1 {[%clk 0:02:29]}  Nd4 {[%clk 0:01:46]} 17. Nxd4 {[%clk 0:01:58]}  Qxd4 {[%clk 0:01:47]} 18. Bxb5+ {[%clk 0:01:54]}  axb5 {[%clk 0:01:43]} 19. Nxb5 {[%clk 0:01:54]}  Qxd2 {[%clk 0:01:43]} 20. Nc7+ {[%clk 0:01:47]}  Kd8 {[%clk 0:01:35]} 21. Nxa8 {[%clk 0:01:46]}  Bxa8 {[%clk 0:01:35]} 22. Qb3 {[%clk 0:01:34]}  f6 {[%clk 0:00:30]} 23. Qa4 {[%clk 0:01:18]}  Bb7 {[%clk 0:00:29]} 24. Qb5 {[%clk 0:01:13]}  fxe5 {[%clk 0:00:20]} 25. Qxb7 {[%clk 0:01:11]}  Ke8 {[%clk 0:00:20]} 26. Rc8+ {[%clk 0:00:55]}  Kf7 {[%clk 0:00:20]} 27. Rc7 {[%clk 0:00:54]}  Qg5 {[%clk 0:00:20]} 28. a4 {[%clk 0:00:43]}  g6 {[%clk 0:00:15]} 29. h6 {[%clk 0:00:41]}  Qf6 {[%clk 0:00:13]} 30. a5 {[%clk 0:00:34]}  g5 {[%clk 0:00:14]} 31. a6 {[%clk 0:00:33]}  Ng6 {[%clk 0:00:14]} 32. a7 {[%clk 0:00:29]}  Nf4 {[%clk 0:00:15]} 33. Rc8 {[%clk 0:00:13]}  Ne2+ {[%clk 0:00:14]} 34. Kh1 {[%clk 0:00:09]}  Qxh6# {[%clk 0:00:15]} 0-1